Cogmind - Beta 12 @@@ ROGUE MODE // 2023.06.06 @ 11:00:09 Player: Mr Goldstein Result: Heading to fleet! Performance ------------- Evolutions (9) 4500 Regions Visited (29) 5800 Robots Destroyed (48) 240 Value Destroyed (2390) 2390 Prototype IDs (48) 960 Alien Tech Used (10) 2000 Bonus (12468) 12468 TOTAL SCORE: 28358 Bonus ------- Pacifist 200 Triggered Max Security 4000 High Alert Combat Kills 1125 Follower Combat Kills 379 Entered Garrisons 200 Met Data Miner 300 Met Zhirov 300 Used Core Reset Matrix 3000 Scanned by Researcher 500 Pursued by Intercept 1000 Met Sigix 2000 Integrated Exoskeleton 5000 Win 3000 Win Speed 1286 Friendly Fire -9822 Cogmind --------- Core Integrity 1346/1600 Matter 425/425 Energy 323/325 System Corruption 2% Temperature Cool (0) Movement Walking (30) Location To Fleet Rendezvous Parts ------- > --- POWER (2) -------- Compact Particle Reactor Light Quantum Reactor > --- PROPULSION (3) --- Sigix Exoskeleton > --- UTILITY (6) ------ Advanced Signal Interpreter Advanced Launcher Guidance Computer Improved Utility Shielding Advanced Force Field Advanced Hacking Suite Improved System Shield > --- WEAPON (2) ------- Sigix Sheargun Sigix Sheargun > --- INVENTORY (7) ---- Precision Matter Filter Point Defense Array Subatomic Replicator Peak State ------------ > --- POWER ------------ Compact Particle Reactor Light Quantum Reactor > --- PROPULSION ------- Sigix Exoskeleton > --- UTILITY ---------- Advanced Signal Interpreter Advanced Launcher Guidance Computer Improved Utility Shielding Advanced Force Field Advanced Hacking Suite Improved System Shield > --- WEAPON ----------- Sigix Sheargun Sigix Sheargun > --- INVENTORY -------- Precision Matter Filter Point Defense Array Subatomic Replicator [Rating: 230] Favorites ----------- Power Compact Particle Reactor Engine Improved Deuterium Engine Power Core Light Nuclear Core Reactor Compact Particle Reactor Propulsion VTOL Module Leg Sigix Exoskeleton Hover Unit Gravmag System Flight Unit VTOL Module Utility Launcher Guidance Computer Device Advanced Force Field Storage Small Storage Unit Processor Launcher Guidance Computer Hackware Makeshift Hacking Suite Protection Improved Utility Shielding Weapon Sigix Sheargun Energy Gun Sigix Sheargun Launcher Scatter Rocket Array Special Weapon Improved Plasma Cutter Impact Weapon Heavy Mace Slashing Weapon Scythe Piercing Weapon Plasma Lance Special Melee Weapon Datajack Build | -11 -10 -10 -9 -9 -9 -8 -8 -7 -7 -7 -7 -6 -6 -6 -6 -5 -5 -4 -4 -4 -4 -3 -3 -3 -3 -2 -1 -1 -1 ------- Run | Jun Mat Min Mat Min Exi Min Mat Fac Low Low Dat Pro Fac Low Low Fac Ext Fac Upp Upp Zhi Pro Res Qua Sec Res Acc Gar Acc Slots Evolved 18 | . . . 2 . . . 2 2 . . . . 2 . . 2 . 2 . . . . 2 . . 2 2 . . Power 2 | . . . . . . . . . . . . . 1 . . . . . . . . . . . . . 1 . . Propulsion 5 | . . . 1 . . . 1 1 . . . . 1 . . . . 1 . . . . . . . . . . . Utility 11 | . . . 1 . . . 1 1 . . . . . . . 2 . 1 . . . . 2 . . 2 1 . . Weapon . | . . . . . . . . . . . . . . . . . . . . . . . . . . . . . . Parts Attached 111 | . 2 1 8 3 . . 8 6 6 . 1 2 13 6 . 2 15 2 . . 7 1 9 6 6 4 3 . . Power 12 | . . . . . . . 1 . 1 . . . 1 1 . . 3 . . . 1 . 2 . 1 . 1 . . Engine 1 | . . . . . . . . . 1 . . . . . . . . . . . . . . . . . . . . Core 3 | . . . . . . . 1 . . . . . 1 1 . . . . . . . . . . . . . . . Reactor 8 | . . . . . . . . . . . . . . . . . 3 . . . 1 . 2 . 1 . 1 . . Propulsion 41 | . 2 1 4 1 . . 7 1 1 . . . 6 5 . . 2 2 . . 3 . 3 3 . . . . . Treads . | . . . . . . . . . . . . . . . . . . . . . . . . . . . . . . Leg . | . . . . . . . . . . . . . . . . . . . . . . . . . . . . . . Wheel . | . . . . . . . . . . . . . . . . . . . . . . . . . . . . . . Hover 6 | . . . . . . . . . . . . . 4 . . . . 2 . . . . . . . . . . . Flight 35 | . 2 1 4 1 . . 7 1 1 . . . 2 5 . . 2 . . . 3 . 3 3 . . . . . Utility 34 | . . . 1 . . . . 4 1 . . . 3 . . 2 4 . . . 3 1 3 3 3 4 2 . . Device 7 | . . . . . . . . . . . . . . . . 1 1 . . . . . . 1 2 2 . . . Storage 1 | . . . . . . . . . 1 . . . . . . . . . . . . . . . . . . . . Processor 11 | . . . 1 . . . . 4 . . . . 1 . . . . . . . . 1 . 2 1 1 . . . Hackware 9 | . . . . . . . . . . . . . 2 . . . 2 . . . 1 . 2 . . . 2 . . Protection 6 | . . . . . . . . . . . . . . . . 1 1 . . . 2 . 1 . . 1 . . . Artifact . | . . . . . . . . . . . . . . . . . . . . . . . . . . . . . . Weapon 24 | . . . 3 2 . . . 1 3 . 1 2 3 . . . 6 . . . . . 1 . 2 . . . . Energy Gun 4 | . . . 2 . . . . . . . . . . . . . . . . . . . . . 2 . . . . Energy Cannon . | . . . . . . . . . . . . . . . . . . . . . . . . . . . . . . Ballistic Gun . | . . . . . . . . . . . . . . . . . . . . . . . . . . . . . . Ballistic Cannon . | . . . . . . . . . . . . . . . . . . . . . . . . . . . . . . Launcher 7 | . . . 1 1 . . . . 1 . . 1 3 . . . . . . . . . . . . . . . . Special Weapon 4 | . . . . . . . . . . . . . . . . . 4 . . . . . . . . . . . . Impact Weapon 2 | . . . . . . . . . . . . . . . . . 2 . . . . . . . . . . . . Slashing Weapon 2 | . . . . . . . . 1 1 . . . . . . . . . . . . . . . . . . . . Piercing Weapon 1 | . . . . . . . . . . . . . . . . . . . . . . . 1 . . . . . . Special Melee Weapon 4 | . . . . 1 . . . . 1 . 1 1 . . . . . . . . . . . . . . . . . Unidentified Prototypes 14 | . . . 2 . . . 2 . . . . . 2 . . . . . . . 4 . 1 2 . 1 . . . Corrupted Parts 1 | . . . . . . . . . . . . . . . . . 1 . . . . . . . . . . . . System Corruption 1 | . . . . . . . . . . . . . . . . . 1 . . . . . . . . . . . . Parts Lost 48 | . . . 2 2 . 3 . 1 2 . . 3 2 2 . . 7 . . 3 . 1 1 6 13 . . . . Power 3 | . . . . . . . . . . . . . . 1 . . 1 . . . . . . 1 . . . . . Propulsion 29 | . . . 2 2 . 2 . 1 2 . . 3 1 1 . . 5 . . 2 . . . 3 5 . . . . Utility 13 | . . . . . . . . . . . . . . . . . 1 . . 1 . 1 1 2 7 . . . . Weapon 3 | . . . . . . 1 . . . . . . 1 . . . . . . . . . . . 1 . . . . Highest Loss Streak 12 | . . . 2 2 . 3 . 1 1 . . 3 1 2 . . 3 . . 3 . 1 2 3 12 . . . . To Critical Strikes 1 | . . . . . . . . . . . . . . . . . . . . . . . . . 1 . . . . Average Slot Usage (%) 62 | . 16 28 37 42 44 31 13 63 77 76 76 69 52 68 80 75 62 57 63 59 71 78 83 76 46 75 82 84 84 Reactor 3 | . . . . . . . . . . . . . . . . . 2 . . . 3 5 8 4 3 9 15 15 15 Leg 1 | . . . . . . . . . . . . . . . . . . . . . . . . . 6 9 7 7 7 Flight 15 | . 16 28 27 26 22 14 4 35 24 23 23 20 10 21 40 35 14 10 10 10 22 26 27 23 4 . . . . Device 3 | . . . . . . . . . . . . . . . . 1 4 5 5 5 5 5 . 1 7 16 7 7 7 Processor 15 | . . . 10 11 11 11 9 24 36 30 30 30 26 20 20 17 16 10 10 10 10 10 9 10 7 15 15 15 15 Hackware 7 | . . . . . . . . . . . . . 5 13 13 11 10 15 15 15 19 21 22 21 3 . 13 15 15 Protection 3 | . . . . . . . . . . . . . . . . 3 5 5 5 5 3 5 9 6 . 7 7 7 7 Energy Gun 3 | . . . . . . . . . . . . . . . . . . . . . . . . . 12 18 15 15 15 Naked Turns 22 | . 22 . . . . . . . . . . . . . . . . . . . . . . . . . . . . Heaviest Build 58 | . . . 4 1 1 1 . 2 16 16 16 16 8 5 5 8 19 7 7 7 25 25 32 32 41 46 58 58 58 Greatest Support 60 | 3 8 8 12 12 8 8 23 12 16 16 16 16 10 21 21 21 22 9 9 9 27 27 48 50 60 60 60 60 60 Greatest Overweight (x) 1 | . . . . . . . . . . . . . . . . . 1 . . . . . . . . . . . . Average Overweight (x) . | . . . . . . . . . . . . . . . . . . . . . . . . . . . . . . Largest Inventory Capacity 8 | 5 5 5 5 5 5 5 5 5 8 8 8 8 5 5 5 5 5 5 5 5 5 5 5 5 7 7 7 7 7 Average Capacity 5 | 5 5 5 5 5 5 5 5 5 5 8 8 7 5 5 5 5 5 5 5 5 5 5 5 5 5 7 7 7 7 Most Carried 8 | 1 2 5 5 5 4 4 5 5 7 8 8 8 5 5 5 5 5 5 5 5 5 5 5 5 5 4 4 4 3 Average Carried 4 | . 1 3 4 4 4 4 4 4 5 7 7 7 4 4 5 4 4 5 5 5 4 5 4 4 3 3 3 3 3 Final Capacity 8 | 5 5 5 5 5 5 5 5 5 8 8 8 5 5 5 5 5 5 5 5 5 5 5 5 5 7 7 7 7 7 Final Carried 8 | 1 2 5 5 4 4 4 5 5 7 8 7 5 4 5 5 4 5 5 5 5 5 5 5 4 1 4 3 3 3 Class Distribution -------------------- 26% | Mutant 22% | Alien-Sigix 20% | Hacker-Sprinter 11% | Sprinter 8% | Hacker-Mutant 5% | Wizard-Sprinter 4% | Scavenger-Sprinter Dominant Class ---------------- Mutant | -10/Materials Mutant | -10/Mines Mutant | -9/Materials Mutant | -9/Mines Mutant | -9/Exiles Mutant | -8/Mines Mutant | -8/Materials Mutant | -7/Factory Mutant | -7/Lower Caves Sprinter | -7/Lower Caves Sprinter | -7/Data Miner Sprinter | -6/Proximity Caves Hacker-Sprinter | -6/Factory Hacker-Sprinter | -6/Lower Caves Scavenger-Sprinter | -6/Lower Caves Scavenger-Sprinter | -5/Factory Hacker-Mutant | -5/Extension Hacker-Sprinter | -4/Factory Hacker-Sprinter | -4/Upper Caves Hacker-Sprinter | -4/Upper Caves Hacker-Sprinter | -4/Zhirov Hacker-Sprinter | -3/Proximity Caves Wizard-Sprinter | -3/Research Hacker-Sprinter | -3/Quarantine Alien-Sigix | -3/Section 7 Alien-Sigix | -2/Research Alien-Sigix | -1/Access Alien-Sigix | -1/Garrison Alien-Sigix | -1/Access Resources | -11 -10 -10 -9 -9 -9 -8 -8 -7 -7 -7 -7 -6 -6 -6 -6 -5 -5 -4 -4 -4 -4 -3 -3 -3 -3 -2 -1 -1 -1 ----------- Run | Jun Mat Min Mat Min Exi Min Mat Fac Low Low Dat Pro Fac Low Low Fac Ext Fac Upp Upp Zhi Pro Res Qua Sec Res Acc Gar Acc Matter Collected 1649 | 179 . 51 1 96 . . . . 141 18 . 81 101 136 . 65 289 . . . 115 10 45 . 128 129 . 64 . Remotely . | . . . . . . . . . . . . . . . . . . . . . . . . . . . . . . Salvage Created 2555 | . . . 14 1 . . . . 152 . . 30 217 . . . 216 . . 21 283 . . . 248 37 . 1334 2 Parts 122 | . . . 5 1 . . . . 7 . . 5 12 . . . 14 . . . 1 . . . 10 5 . 60 2 Haulers Intercepted 1 | . . . . . . . . . . . . . 1 . . . . . . . . . . . . . . . . Recyclers Shooed . | . . . . . . . . . . . . . . . . . . . . . . . . . . . . . . Parts Field Recycled . | . . . . . . . . . . . . . . . . . . . . . . . . . . . . . . Retrieved Matter . | . . . . . . . . . . . . . . . . . . . . . . . . . . . . . . Parts Self-Destructed 16 | . . . . . . . . . 3 . . 7 . 4 . . . . . 2 . . . . . . . . . Prevented . | . . . . . . . . . . . . . . . . . . . . . . . . . . . . . . Kills | -11 -10 -10 -9 -9 -9 -8 -8 -7 -7 -7 -7 -6 -6 -6 -6 -5 -5 -4 -4 -4 -4 -3 -3 -3 -3 -2 -1 -1 -1 ------- Run | Jun Mat Min Mat Min Exi Min Mat Fac Low Low Dat Pro Fac Low Low Fac Ext Fac Upp Upp Zhi Pro Res Qua Sec Res Acc Gar Acc Combat Hostiles Destroyed 36 | . . . 3 . . . . . 3 . . 3 8 . . . . . . 1 . . . . . . . 18 . Melee 1 | . . . . . . . . . 1 . . . . . . . . . . . . . . . . . . . . Guns 18 | . . . . . . . . . . . . . . . . . . . . . . . . . . . . 18 . AOE 16 | . . . 3 . . . . . 2 . . 3 8 . . . . . . . . . . . . . . . . Classes Destroyed 12 | . . . 1 1 . . . . 1 . . . 3 . . . 1 . . . . . . . 1 1 . 3 . Worker 4 | . . . . 1 . . . . . . . . 1 . . . . . . . . . . . 1 . . . 1 Builder 1 | . . . . . . . . . . . . . 1 . . . . . . . . . . . . . . . . Hauler 1 | . . . . . . . . . . . . . 1 . . . . . . . . . . . . . . . . Recycler 2 | . . . . . . . . . . . . . . . . . 1 . . . . . . . 1 . . . . Watcher 1 | . . . . . . . . . . . . . . . . . . . . . . . . . . 1 . . . Swarmer 21 | . . . 3 . . . . . 2 . . 3 7 . . . . . . 1 . . . . . . . 5 . Grunt 7 | . . . . . . . . . . . . . 1 . . . . . . . . . . . . . . 6 . Duelist 1 | . . . . . . . . . . . . . . . . . . . . . . . . . . . . 1 . Researcher 1 | . . . . . . . . . . . . . . . . . . . . . . . . . 1 . . . . Sentry 1 | . . . . . . . . . 1 . . . . . . . . . . . . . . . . . . . . Hunter 4 | . . . . . . . . . . . . . . . . . . . . . . . . . . . . 4 . Programmer 2 | . . . . . . . . . . . . . . . . . . . . . . . . . . . . 2 . Investigator 1 | . . . . . . . . . . . . . . . . . . . . . . . . . 1 . . . . Decomposer 3 | . . . . . . . . . 3 . . . . . . . . . . . . . . . . . . . . Best Kill Streak 11 | . . . 3 1 . . . . 2 . . 3 5 . . . 1 . . 1 . . . . 4 1 . 11 1 Combat Bots Only 11 | . . . 3 . . . . . 2 . . 3 4 . . . . . . 1 . . . . . . . 11 . Max Kills in Single Turn 4 | . . . 2 1 . . . . 1 . . 2 4 . . . 1 . . 1 . . . . 2 1 . 2 1 Gunslinging 1 | . . . . . . . . . . . . . . . . . . . . . . . . . . . . 1 . Exploded 4 | . . . 2 . . . . . 1 . . 2 4 . . . . . . . . . . . . . . . . Melee 1 | . . . . . . . . . 1 . . . . . . . . . . . . . . . . . . . . Uniques/NPCs Destroyed 1 | . . . . . . . . . . . . . . . . . 1 . . . . . . . . . . . . A7 (-5/Extension) Combat | -11 -10 -10 -9 -9 -9 -8 -8 -7 -7 -7 -7 -6 -6 -6 -6 -5 -5 -4 -4 -4 -4 -3 -3 -3 -3 -2 -1 -1 -1 -------- Run | Jun Mat Min Mat Min Exi Min Mat Fac Low Low Dat Pro Fac Low Low Fac Ext Fac Upp Upp Zhi Pro Res Qua Sec Res Acc Gar Acc Damage Taken 8929 | . 111 30 222 80 . 138 527 112 118 . . 343 207 89 . . 732 . 78 329 . 47 495 654 2636 1071 6 888 16 Core 3224 | . 93 30 124 54 . 105 446 45 57 . . 215 96 31 . . 263 . 23 78 . . 55 48 888 319 2 248 4 Absorbed by Shields 2331 | . . . . . . . . . . . . . . . . . 141 . . . . . . . 924 674 7 567 18 Redirected to Shielding 258 | . . . . . . . . . . . . . . . . . 47 . . 61 . . 34 29 87 . . . . Regen/Repaired (Parts) 87 | . . . . . . . . . . . . . . . . . . . . . 14 15 58 . . . . . . Core Remaining (%) 61 | 100 . 50 . . . 29 18 . . . . 54 . . 85 . 73 . . . . 91 . . 18 78 . . 84 Volleys Fired 225 | . . . 3 2 . . . . 2 . . 3 4 . . . 132 . . . . . . . 7 20 3 39 10 Largest 2 | . . . 1 1 . . . . 1 . . 1 1 . . . 1 . . . . . . . 2 2 1 2 2 Hottest 200 | . . . 33 33 . . . . 30 . . 33 50 . . . 20 . . . . . . . 200 200 100 200 200 Shots Fired 291 | . . . 3 2 . . . . 2 . . 3 4 . . . 132 . . . . . . . 12 34 3 76 20 Gun 145 | . . . . . . . . . . . . . . . . . . . . . . . . . 12 34 3 76 20 Cannon . | . . . . . . . . . . . . . . . . . . . . . . . . . . . . . . Launcher 14 | . . . 3 2 . . . . 2 . . 3 4 . . . . . . . . . . . . . . . . Special 132 | . . . . . . . . . . . . . . . . . 132 . . . . . . . . . . . . Kinetic . | . . . . . . . . . . . . . . . . . . . . . . . . . . . . . . Thermal 124 | . . . . . . . . . . . . . . . . . 124 . . . . . . . . . . . . Explosive 14 | . . . 3 2 . . . . 2 . . 3 4 . . . . . . . . . . . . . . . . Electromagnetic . | . . . . . . . . . . . . . . . . . . . . . . . . . . . . . . Slashing 145 | . . . . . . . . . . . . . . . . . . . . . . . . . 12 34 3 76 20 Robot Hit Streak 14 | . . . 1 . . . . . . . . 2 8 . . . 14 . . . . . . . 2 3 . 12 . Robot Miss Streak 6 | . . . 1 . . . . . . . . . 3 . . . 6 . . . . . . . 3 1 . 4 . Penetration Max 1 | . . . . . . . . . . . . . . . . . . . . . . . . . 1 . . 1 . Secondary Targets 8 | . . . . . . . . . . . . . . . . . . . . . . . . . 1 . . 7 . Max Gunslinging Chain 1 | . . . . . . . . . . . . . . . . . . . . . . . . . 1 . . 1 . Shots Hit Robots 154 | . . . 1 2 4 . . . 6 . 1 5 2 . . . 74 . . 2 9 . . . 3 7 . 38 . Core Hits 103 | . . . 3 1 . 1 . . 6 . . 4 25 . . . 25 . . . 1 . . . 5 3 . 28 1 Critical Kills . | . . . . . . . . . . . . . . . . . . . . . . . . . . . . . . Critical Parts Destroyed 2 | . . . . . . . . . . . . . . . . . . . . . 2 . . . . . . . . Critical Strikes 9 | . . . . . . . . . . . . . . . . . 5 . . . 2 . . . 1 . . 1 . Smash 2 | . . . . . . . . . . . . . . . . . . . . . 2 . . . . . . . . Sever 7 | . . . . . . . . . . . . . . . . . 5 . . . . . . . 1 . . 1 . Melee Attacks 43 | . . . . 2 4 . . . 7 . 1 4 . . . . 1 . . 5 9 . 7 3 . . . . . Impact 25 | . . . . . . . . . . . . . . . . . 1 . . 5 9 . 7 3 . . . . . Slashing 6 | . . . . . . . . . 6 . . . . . . . . . . . . . . . . . . . . Piercing 3 | . . . . . . . . . 1 . . 2 . . . . . . . . . . . . . . . . . Sneak Attacks 13 | . . . . 2 4 . . . 3 . 1 2 . . . . 1 . . . . . . . . . . . . Combat Hostiles . | . . . . . . . . . . . . . . . . . . . . . . . . . . . . . . Follow-up Attacks . | . . . . . . . . . . . . . . . . . . . . . . . . . . . . . . Damage Inflicted 8818 | . . . 147 22 . 7 1 . 410 . . 228 948 . . . 1310 . . 130 791 . 2 . 660 479 . 3584 99 Guns 4405 | . . . . . . . . . . . . . . . . . . . . . . . . . 586 362 . 3457 . Cannons . | . . . . . . . . . . . . . . . . . . . . . . . . . . . . . . Explosions 1481 | . . . 147 22 . . . . 105 . . 226 941 . . . . . . . . . . . . . . . 40 Melee 1276 | . . . . . . . . . 305 . . 2 . . . . 48 . . 130 791 . . . . . . . . Ramming 394 | . . . . . . 7 1 . . . . . 7 . . . . . . . . . 2 . 74 117 . 127 59 Kinetic . | . . . . . . . . . . . . . . . . . . . . . . . . . . . . . . Thermal 1342 | . . . . . . . . . . . . . 40 . . . 1262 . . . . . . . . . . . 40 Explosive 1378 | . . . 147 22 . . . . 105 . . 226 878 . . . . . . . . . . . . . . . . Electromagnetic 23 | . . . . . . . . . . . . . 23 . . . . . . . . . . . . . . . . Impact 969 | . . . . . . . . . . . . . . . . . 48 . . 130 791 . . . . . . . . Slashing 4709 | . . . . . . . . . 304 . . . . . . . . . . . . . . . 586 362 . 3457 . Piercing 3 | . . . . . . . . . 1 . . 2 . . . . . . . . . . . . . . . . . Highest Corruption 4 | . . . . . . . . . . . . 1 . . . . 1 . 1 1 1 1 . . 4 . . 2 2 Average Corruption 1 | . . . . . . . . . . . . 1 . . . . 1 . 1 1 1 1 . . 1 . . 1 2 Corruption Purged . | . . . . . . . . . . . . . . . . . . . . . . . . . . . . . . Corruption Blocked . | . . . . . . . . . . . . . . . . . . . . . . . . . . . . . . Effects 11 | . . . . . . . . . . . . . . . . . 3 . . 1 . . . . 2 . . 1 4 Message Errors 4 | . . . . . . . . . . . . . . . . . 2 . . . . . . . . . . . 2 Matter Fused 3 | . . . . . . . . . . . . . . . . . 1 . . 1 . . . . . . . 1 . Heat Flow Errors 1 | . . . . . . . . . . . . . . . . . . . . . . . . . 1 . . . . Energy Discharges 1 | . . . . . . . . . . . . . . . . . . . . . . . . . . . . . 1 Parts Rejected 1 | . . . . . . . . . . . . . . . . . . . . . . . . . 1 . . . . Data Loss (minor) 1 | . . . . . . . . . . . . . . . . . . . . . . . . . . . . . 1 Overload Shots . | . . . . . . . . . . . . . . . . . . . . . . . . . . . . . . Overflow Damage 564 | . . . 3 8 . . . . 157 . . . 4 . . . 25 . . 57 252 . . . 24 . . . 34 Projectiles 7 | . . . . . . . . . . . . . . . . . 7 . . . . . . . . . . . . Explosions 15 | . . . 3 8 . . . . . . . . 4 . . . . . . . . . . . . . . . . Melee 542 | . . . . . . . . . 157 . . . . . . . 18 . . 57 252 . . . 24 . . . 34 Knockbacks 3 | . . . . . . . . . . . . . . . . . 1 . . 1 . . . . . . . . 1 Impact 3 | . . . . . . . . . . . . . . . . . 1 . . 1 . . . . . . . . 1 Kinetic . | . . . . . . . . . . . . . . . . . . . . . . . . . . . . . . Secondary . | . . . . . . . . . . . . . . . . . . . . . . . . . . . . . . Self-Inflicted Damage 102 | . . . 49 30 . 3 . . 3 . . . 17 . . . . . . . . . . . . . . . . Shots 4 | . . . 1 1 . . . . 1 . . . 1 . . . . . . . . . . . . . . . . Rammed 7 | . . . . . . 2 1 . . . . . 2 . . . . . . . . . 2 . . . . . . Targets Rammed 20 | . . . . . . 2 1 . . . . . 2 . . . . . . . . . 2 . 1 6 . 5 1 Kicked 13 | . . . . . . . . . . . . . . . . . . . . . . . . . 1 6 . 5 1 Crushed . | . . . . . . . . . . . . . . . . . . . . . . . . . . . . . . Highest Temperature 378 | . . . 378 . . . . . . . . . . . . . 1 . . . . . . . 16 . . . . Average Temperature 171 | . . . 188 . . . . . . . . . . . . . 1 . . . . . . . 16 . . . . Received Heat Transfer 1006 | . 18 15 27 21 . . 198 12 18 . . 45 30 . . . 87 . . 9 . . 60 114 206 118 . 28 . Siege Activations . | . . . . . . . . . . . . . . . . . . . . . . . . . . . . . . Robots Corrupted . | . . . . . . . . . . . . . . . . . . . . . . . . . . . . . . Combat Hostiles . | . . . . . . . . . . . . . . . . . . . . . . . . . . . . . . Parts Fried 2 | . . . . . . . . . . . . . . . . . . . . 2 . . . . . . . . . Impact Corruptions 17 | . . . . . . . . . . . . . . . . . 1 . . 2 12 . . . 1 . . . 1 Robots Melted . | . . . . . . . . . . . . . . . . . . . . . . . . . . . . . . Combat Hostiles . | . . . . . . . . . . . . . . . . . . . . . . . . . . . . . . Parts Melted . | . . . . . . . . . . . . . . . . . . . . . . . . . . . . . . Heat Transferred 1524 | . . . . . . . . . . . . . 50 . . . 1424 . . . . . . . . . . . 50 Parts Sabotaged . | . . . . . . . . . . . . . . . . . . . . . . . . . . . . . . Parts Stolen . | . . . . . . . . . . . . . . . . . . . . . . . . . . . . . . Parts Stripped . | . . . . . . . . . . . . . . . . . . . . . . . . . . . . . . Power Chain Reactions 2 | . . . . . . . . . . . . . 2 . . . . . . . . . . . . . . . . Missiles Intercepted . | . . . . . . . . . . . . . . . . . . . . . . . . . . . . . . Alert | -11 -10 -10 -9 -9 -9 -8 -8 -7 -7 -7 -7 -6 -6 -6 -6 -5 -5 -4 -4 -4 -4 -3 -3 -3 -3 -2 -1 -1 -1 ------- Run | Jun Mat Min Mat Min Exi Min Mat Fac Low Low Dat Pro Fac Low Low Fac Ext Fac Upp Upp Zhi Pro Res Qua Sec Res Acc Gar Acc Peak Influence 2378 | . 102 69 369 227 . 95 232 312 . . . . 714 . . 308 343 85 . . . . 835 876 2041 2378 1600 1969 1600 Initial 1351 | . . 39 26 143 . . 37 105 . . . . 56 . . 218 150 70 . . . . 313 469 416 1147 1351 1280 1180 Average 664 | . 33 55 165 196 . 19 117 241 . . . . 281 . . 280 212 74 . . . . 523 681 1166 1728 1364 1540 1398 Maximum Alert Level 5 | . . . 1 1 . . 1 1 . . . . 3 . . 1 1 . . . . . 3 3 5 5 5 5 5 Low Security (%) 32 | 100 100 100 57 34 . 100 81 26 . . . . 51 . . . 63 100 . . . . . . . . . . . Level 1 22 | . . . 42 65 . . 18 73 . . . . 17 . . 100 36 . . . . . 36 . 2 . . . . Level 2 12 | . . . . . . . . . . . . . 28 . . . . . . . . . 44 58 40 . . . . Level 3 4 | . . . . . . . . . . . . . 1 . . . . . . . . . 19 41 . . . . . Level 4 12 | . . . . . . . . . . . . . . . . . . . . . . . . . . 25 97 67 90 Level 5 2 | . . . . . . . . . . . . . . . . . . . . . . . . . . . . 32 . High Security . | . . . . . . . . . . . . . . . . . . . . . . . . . . . . . . Max Security 13 | . . . . . . . . . . . . . . . . . . . . . . . . . 56 74 2 . 9 Squads Dispatched 78 | . 2 . 1 1 . . 3 4 . . . . 6 . . 2 . 1 . . . . . 2 17 32 . . 7 Investigation 18 | . 2 . 1 1 . . 1 3 . . . . 4 . . 2 . . . . . . . 1 . 3 . . . Extermination 1 | . . . . . . . . . . . . . . . . . . . . . . . . 1 . . . . . Reinforcement 8 | . . . . . . . 1 1 . . . . 2 . . . . 1 . . . . . . 2 1 . . . Assault 40 | . . . . . . . 1 . . . . . . . . . . . . . . . . . 12 20 . . 7 Garrison 1 | . . . . . . . . . . . . . . . . . . . . . . . . . . 1 . . . Intercept 10 | . . . . . . . . . . . . . . . . . . . . . . . . . 3 7 . . . Searches Triggered 1 | . . . . . . . . . . . . . . . . . . . . . . . . 1 . . . . . Data Miner Redirects 7 | . . . . . . . . . . . . . 3 . . 1 . . . . . . . 1 . 2 . . . Construction Impeded . | . . . . . . . . . . . . . . . . . . . . . . . . . . . . . . Haulers Reinforced 1 | . . . . . . . . . . . . . 1 . . . . . . . . . . . . . . . . Active Scanning Responses . | . . . . . . . . . . . . . . . . . . . . . . . . . . . . . . Cargo Convoy Interrupts . | . . . . . . . . . . . . . . . . . . . . . . . . . . . . . . Stealth | -11 -10 -10 -9 -9 -9 -8 -8 -7 -7 -7 -7 -6 -6 -6 -6 -5 -5 -4 -4 -4 -4 -3 -3 -3 -3 -2 -1 -1 -1 --------- Run | Jun Mat Min Mat Min Exi Min Mat Fac Low Low Dat Pro Fac Low Low Fac Ext Fac Upp Upp Zhi Pro Res Qua Sec Res Acc Gar Acc Distress Signals 15 | . 1 . . . . . 1 . . . . . 1 . . . 5 . . . . 1 1 1 3 1 . . . Communications Jammed . | . . . . . . . . . . . . . . . . . . . . . . . . . . . . . . Distress Signals . | . . . . . . . . . . . . . . . . . . . . . . . . . . . . . . Times Spotted 493 | . 15 2 18 4 . 10 17 8 5 3 . 9 26 4 . 2 19 1 1 12 . 8 33 27 142 102 2 19 4 Peak Tracking Total 71 | . 13 2 8 4 . 5 13 4 4 3 . 5 12 4 . 2 14 2 1 7 . 5 13 9 71 48 3 11 9 Tactical Retreats 61 | . . 1 4 . . 2 2 2 2 2 . . 4 . . . 4 . . 4 . 1 6 6 6 13 . 2 . Traps | -11 -10 -10 -9 -9 -9 -8 -8 -7 -7 -7 -7 -6 -6 -6 -6 -5 -5 -4 -4 -4 -4 -3 -3 -3 -3 -2 -1 -1 -1 ------- Run | Jun Mat Min Mat Min Exi Min Mat Fac Low Low Dat Pro Fac Low Low Fac Ext Fac Upp Upp Zhi Pro Res Qua Sec Res Acc Gar Acc Traps Triggered 17 | . . . . . . . . . . . . . 2 . . . 3 . . . . . 3 1 . 6 . 1 1 Indirectly . | . . . . . . . . . . . . . . . . . . . . . . . . . . . . . . Trap Hack Attempts . | . . . . . . . . . . . . . . . . . . . . . . . . . . . . . . Triggered . | . . . . . . . . . . . . . . . . . . . . . . . . . . . . . . Disarmed . | . . . . . . . . . . . . . . . . . . . . . . . . . . . . . . Reprogrammed . | . . . . . . . . . . . . . . . . . . . . . . . . . . . . . . Reused . | . . . . . . . . . . . . . . . . . . . . . . . . . . . . . . Traps Extracted . | . . . . . . . . . . . . . . . . . . . . . . . . . . . . . . Installed . | . . . . . . . . . . . . . . . . . . . . . . . . . . . . . . Triggered 1 | . . . . . . . . . . . . . . . . . . . . . . 1 . . . . . . . Machines | -11 -10 -10 -9 -9 -9 -8 -8 -7 -7 -7 -7 -6 -6 -6 -6 -5 -5 -4 -4 -4 -4 -3 -3 -3 -3 -2 -1 -1 -1 ---------- Run | Jun Mat Min Mat Min Exi Min Mat Fac Low Low Dat Pro Fac Low Low Fac Ext Fac Upp Upp Zhi Pro Res Qua Sec Res Acc Gar Acc Machines Disabled 19 | . . . 1 3 . . . . . . . . 4 . . . . . . . . . . 2 2 2 . 3 2 Max in Single Turn 3 | . . . 1 3 . . . . . . . . 2 . . . . . . . . . . 1 2 1 . 1 1 Garrison Access 1 | . . . . . . . . . . . . . . . . . . . . . . . . . . . . . 1 Garrison Relay 1 | . . . . . . . . . . . . . . . . . . . . . . . . . . . . 1 . Energy Cycler 1 | . . . . . . . . . . . . . . . . . . . . . . . . . . . . . 1 Machines Repaired . | . . . . . . . . . . . . . . . . . . . . . . . . . . . . . . Machines Sabotaged . | . . . . . . . . . . . . . . . . . . . . . . . . . . . . . . Overloaded Fab Kills . | . . . . . . . . . . . . . . . . . . . . . . . . . . . . . . Hacking | -11 -10 -10 -9 -9 -9 -8 -8 -7 -7 -7 -7 -6 -6 -6 -6 -5 -5 -4 -4 -4 -4 -3 -3 -3 -3 -2 -1 -1 -1 --------- Run | Jun Mat Min Mat Min Exi Min Mat Fac Low Low Dat Pro Fac Low Low Fac Ext Fac Upp Upp Zhi Pro Res Qua Sec Res Acc Gar Acc Machines Accessed 38 | . 2 . 2 1 1 . 1 4 1 . 3 . 4 . . 3 1 . . . 2 . 2 3 3 4 1 . . Terminals 19 | . 1 . 1 1 . . . 1 . . . . 3 . . . 1 . . . . . 2 2 3 4 . . . Fabricators 1 | . . . . . . . . . . . . . . . . 1 . . . . . . . . . . . . . Repair Stations 1 | . . . . . . . . 1 . . . . . . . . . . . . . . . . . . . . . Recycling Units 7 | . 1 . 1 . . . 1 2 . . . . . . . 2 . . . . . . . . . . . . . Scanalyzers . | . . . . . . . . . . . . . . . . . . . . . . . . . . . . . . Garrison Access 3 | . . . . . . . . . . . . . 1 . . . . . . . . . . 1 . . 1 . . Total Hacks 87 | . 7 . 3 2 1 . 1 8 1 . 19 . 9 . . 4 1 . . . 9 . 3 4 4 8 3 . . Successful 52 | . 3 . 2 . 1 . 1 3 1 . 19 . . . . 3 1 . . . 9 . 1 4 2 1 1 . . Failed 35 | . 4 . 1 2 . . . 5 . . . . 9 . . 1 . . . . . . 2 . 2 7 2 . . Catastrophic 10 | . 2 . . 1 . . . 1 . . . . 2 . . . . . . . . . 1 . 1 2 . . . Database Lockouts . | . . . . . . . . . . . . . . . . . . . . . . . . . . . . . . Manual 29 | . 7 . 2 2 . . 1 5 . . . . 2 . . 3 1 . . . . . 3 1 2 . . . . Terminals 37 | . 6 . 1 2 . . . 3 . . . . 6 . . . 1 . . . . . 3 3 4 8 . . . Fabricators 1 | . . . . . . . . . . . . . . . . 1 . . . . . . . . . . . . . Repair Stations 3 | . . . . . . . . 3 . . . . . . . . . . . . . . . . . . . . . Recycling Units 9 | . 1 . 2 . . . 1 2 . . . . . . . 3 . . . . . . . . . . . . . Scanalyzers . | . . . . . . . . . . . . . . . . . . . . . . . . . . . . . . Garrison Access 7 | . . . . . . . . . . . . . 3 . . . . . . . . . . 1 . . 3 . . Terminal Hacks 41 | . 2 . 1 . 1 . . 1 1 . 19 . . . . . . . . . 9 . 1 3 2 1 . . . Record 10 | . . . . . 1 . . . . . 2 . . . . . . . . . 5 . . 2 . . . . . Part Schematic 10 | . . . . . . . . . . . 10 . . . . . . . . . . . . . . . . . . Robot Schematic 4 | . . . . . . . . . . . 4 . . . . . . . . . . . . . . . . . . Robot Analysis 6 | . 2 . . . . . . . . . . . . . . . . . . . 4 . . . . . . . . Prototype ID Bank 3 | . . . . . . . . . . . 3 . . . . . . . . . . . . . . . . . . Open Door 3 | . . . . . . . . . 1 . . . . . . . . . . . . . . 1 1 . . . . Branch Access Points 3 | . . . 1 . . . . 1 . . . . . . . . . . . . . . 1 . . . . . . Zone Layout 1 | . . . . . . . . . . . . . . . . . . . . . . . . . . 1 . . . Activate Exoskeleton 1 | . . . . . . . . . . . . . . . . . . . . . . . . . 1 . . . . Fabricator Hacks 1 | . . . . . . . . . . . . . . . . 1 . . . . . . . . . . . . . Network Status 1 | . . . . . . . . . . . . . . . . 1 . . . . . . . . . . . . . Repair Station Hacks . | . . . . . . . . . . . . . . . . . . . . . . . . . . . . . . Recycling Unit Hacks . | . . . . . . . . . . . . . . . . . . . . . . . . . . . . . . Scanalyzer . | . . . . . . . . . . . . . . . . . . . . . . . . . . . . . . Garrison Access Hacks 1 | . . . . . . . . . . . . . . . . . . . . . . . . . . . 1 . . Unlock Access 1 | . . . . . . . . . . . . . . . . . . . . . . . . . . . 1 . . Unauthorized Hacks 9 | . 1 . 1 . . . 1 2 . . . . . . . 2 1 . . . . . . 1 . . . . . Terminals 1 | . . . . . . . . . . . . . . . . . 1 . . . . . . . . . . . . Disrupt 1 | . . . . . . . . . . . . . . . . . 1 . . . . . . . . . . . . Fabricators . | . . . . . . . . . . . . . . . . . . . . . . . . . . . . . . Repair Stations . | . . . . . . . . . . . . . . . . . . . . . . . . . . . . . . Recycling Units 7 | . 1 . 1 . . . 1 2 . . . . . . . 2 . . . . . . . . . . . . . Tunnel 7 | . 1 . 1 . . . 1 2 . . . . . . . 2 . . . . . . . . . . . . . Scanalyzers . | . . . . . . . . . . . . . . . . . . . . . . . . . . . . . . Garrison Access 1 | . . . . . . . . . . . . . . . . . . . . . . . . 1 . . . . . Reprogram 1 | . . . . . . . . . . . . . . . . . . . . . . . . 1 . . . . . Data Cores Recovered . | . . . . . . . . . . . . . . . . . . . . . . . . . . . . . . Used . | . . . . . . . . . . . . . . . . . . . . . . . . . . . . . . Hacking Detections 18 | . 1 . 1 1 . . . 2 . . . . 4 . . 1 . . . . . . 1 . 2 4 1 . . Full Trace Events 10 | . 1 . . 1 . . . 1 . . . . 4 . . . . . . . . . . . . 3 . . . Feedback Events . | . . . . . . . . . . . . . . . . . . . . . . . . . . . . . . Feedback Blocked . | . . . . . . . . . . . . . . . . . . . . . . . . . . . . . . Robot Schematics Acquired 6 | . . . . . . . . . . . 4 . . . . . . . . . . . . . 2 . . . . Robots Built . | . . . . . . . . . . . . . . . . . . . . . . . . . . . . . . Authchips . | . . . . . . . . . . . . . . . . . . . . . . . . . . . . . . Time . | . . . . . . . . . . . . . . . . . . . . . . . . . . . . . . Total Robot Build Rating . | . . . . . . . . . . . . . . . . . . . . . . . . . . . . . . Part Schematics Acquired 11 | . . . . . . . . . . . 10 . . . . . . . . . . . . . 1 . . . . Parts Built . | . . . . . . . . . . . . . . . . . . . . . . . . . . . . . . Authchips . | . . . . . . . . . . . . . . . . . . . . . . . . . . . . . . Time . | . . . . . . . . . . . . . . . . . . . . . . . . . . . . . . Total Part Build Rating . | . . . . . . . . . . . . . . . . . . . . . . . . . . . . . . Parts Repaired . | . . . . . . . . . . . . . . . . . . . . . . . . . . . . . . Time . | . . . . . . . . . . . . . . . . . . . . . . . . . . . . . . Parts Recycled . | . . . . . . . . . . . . . . . . . . . . . . . . . . . . . . Recycled Matter . | . . . . . . . . . . . . . . . . . . . . . . . . . . . . . . Retrieved Matter . | . . . . . . . . . . . . . . . . . . . . . . . . . . . . . . Retrieved Components . | . . . . . . . . . . . . . . . . . . . . . . . . . . . . . . Parts Scanalyzed . | . . . . . . . . . . . . . . . . . . . . . . . . . . . . . . Part Schematics Acquired . | . . . . . . . . . . . . . . . . . . . . . . . . . . . . . . Parts Damaged . | . . . . . . . . . . . . . . . . . . . . . . . . . . . . . . Bothacking | -11 -10 -10 -9 -9 -9 -8 -8 -7 -7 -7 -7 -6 -6 -6 -6 -5 -5 -4 -4 -4 -4 -3 -3 -3 -3 -2 -1 -1 -1 ------------ Run | Jun Mat Min Mat Min Exi Min Mat Fac Low Low Dat Pro Fac Low Low Fac Ext Fac Upp Upp Zhi Pro Res Qua Sec Res Acc Gar Acc Used RIF Installer . | . . . . . . . . . . . . . . . . . . . . . . . . . . . . . . Robots Hacked 11 | . . . . 2 4 . . . . . 1 2 . . . . 2 . . . . . . . . . . . . Non-combat 4 | . . . . . 3 . . . . . . 1 . . . . . . . . . . . . . . . . . Combat 7 | . . . . 2 1 . . . . . 1 1 . . . . 2 . . . . . . . . . . . . Robot Hacks Applied 11 | . . . . 2 4 . . . . . 1 2 . . . . 2 . . . . . . . . . . . . parse_system 11 | . . . . 2 4 . . . . . 1 2 . . . . 2 . . . . . . . . . . . . Relay Couplers Released 6 | . . . . . . . . . . . . . . . . . . . . . . . . . . . . 5 1 Machine Destruction 6 | . . . . . . . . . . . . . . . . . . . . . . . . . . . . 5 1 Fabnet Peak Effective % . | . . . . . . . . . . . . . . . . . . . . . . . . . . . . . . Robots Rewired 3 | . . . . . . . . . . . . . . . . . 3 . . . . . . . . . . . . Allies Hacked . | . . . . . . . . . . . . . . . . . . . . . . . . . . . . . . Hacks Repelled . | . . . . . . . . . . . . . . . . . . . . . . . . . . . . . . Allies | -11 -10 -10 -9 -9 -9 -8 -8 -7 -7 -7 -7 -6 -6 -6 -6 -5 -5 -4 -4 -4 -4 -3 -3 -3 -3 -2 -1 -1 -1 -------- Run | Jun Mat Min Mat Min Exi Min Mat Fac Low Low Dat Pro Fac Low Low Fac Ext Fac Upp Upp Zhi Pro Res Qua Sec Res Acc Gar Acc Total Allies 94 | . . . . 4 . . . . . . . 1 . . . . 8 . . . . . . 2 . 66 6 . 7 Largest Group 8 | . . . . 4 . . . . . . . 1 . . . . 4 . . . . . . 2 . 8 6 . 5 Highest-Rated Group 248 | . . . . 71 . . . . . . . 96 . . . . 248 . . . . . . 164 . 113 85 . 71 Highest-Rated Ally 159 | . . . . 31 . . . . . . . 96 . . . . 159 . . . . . . 82 . 15 15 . 15 Total Orders . | . . . . . . . . . . . . . . . . . . . . . . . . . . . . . . Ally Attacks 146 | . . . . . . . . . . . . 7 . . . . 30 . . . . . . . . 109 . . . Total Damage 2996 | . . . . . . . . . . . . 180 . . . . 1002 . . . . . . . . 1814 . . . Kills 13 | . . . . . . . . . . . . 2 . . . . 6 . . . . . . . . 5 . . . Allies Corrupted . | . . . . . . . . . . . . . . . . . . . . . . . . . . . . . . Allies Melted 1 | . . . . . . . . . . . . . . . . . 1 . . . . . . . . . . . . Intel | -11 -10 -10 -9 -9 -9 -8 -8 -7 -7 -7 -7 -6 -6 -6 -6 -5 -5 -4 -4 -4 -4 -3 -3 -3 -3 -2 -1 -1 -1 ------- Run | Jun Mat Min Mat Min Exi Min Mat Fac Low Low Dat Pro Fac Low Low Fac Ext Fac Upp Upp Zhi Pro Res Qua Sec Res Acc Gar Acc Robot Analysis Total 6 | . 2 . . . . . . . . . . . . . . . . . . . 4 . . . . . . . . Derelict Logs Recovered 7 | . . 1 . 3 . . . . 2 . . . . . . . . . 1 . . . . . . . . . . Drone Launches . | . . . . . . . . . . . . . . . . . . . . . . . . . . . . . . Drone Recoveries . | . . . . . . . . . . . . . . . . . . . . . . . . . . . . . . Exploration | -11 -10 -10 -9 -9 -9 -8 -8 -7 -7 -7 -7 -6 -6 -6 -6 -5 -5 -4 -4 -4 -4 -3 -3 -3 -3 -2 -1 -1 -1 ------------- Run | Jun Mat Min Mat Min Exi Min Mat Fac Low Low Dat Pro Fac Low Low Fac Ext Fac Upp Upp Zhi Pro Res Qua Sec Res Acc Gar Acc Turns Passed 4771 | 15 44 126 158 180 68 77 107 184 205 58 31 170 309 128 14 88 726 34 57 103 137 58 197 292 308 430 88 243 136 Spaces Moved 10834 | 28 94 330 392 473 167 187 201 467 443 176 90 368 721 244 59 371 746 97 179 279 158 241 685 935 804 1075 218 305 301 Core 499 | 28 42 . . . . 31 143 . . . . 29 100 . . . 9 . . . . . . . 117 . . . . Treads . | . . . . . . . . . . . . . . . . . . . . . . . . . . . . . . Legs 2357 | . . . . . . . . . . . . . . . . . . . . . . . . . 458 1075 218 305 301 Wheels . | . . . . . . . . . . . . . . . . . . . . . . . . . . . . . . Hover 5 | . . . . . . . . . . . . . 5 . . . . . . . . . . . . . . . . Flight 7973 | . 52 330 392 473 167 156 58 467 443 176 90 339 616 244 59 371 737 97 179 279 158 241 685 935 229 . . . . Fastest Speed 20 | 50 37 37 34 34 37 37 29 37 32 32 32 32 32 23 23 23 23 32 32 32 23 23 20 22 26 30 30 30 30 Average Speed 31 | 50 42 37 35 35 37 40 45 37 35 32 32 33 34 31 23 23 28 32 32 32 27 23 21 25 32 30 30 30 30 Slowest Speed 104 | 50 50 37 40 37 37 50 50 40 37 32 32 50 60 35 23 23 104 32 32 32 32 23 23 28 50 30 30 30 30 Overloaded Moves . | . . . . . . . . . . . . . . . . . . . . . . . . . . . . . . Propulsion Burnouts . | . . . . . . . . . . . . . . . . . . . . . . . . . . . . . . Robots Hopped 107 | . 3 2 4 5 . . 11 4 . 1 . 3 19 2 . 5 15 . . . . . 12 16 5 . . . . Cave-ins Triggered . | . . . . . . . . . . . . . . . . . . . . . . . . . . . . . . Teleports 1 | . . . . . . . . . . . . . . . . . . . . . . . . . 1 . . . . Exploration Rate (%) 44 | 4 32 84 60 92 61 54 32 16 65 42 75 67 31 38 14 9 72 3 40 47 60 51 35 87 63 39 10 44 11 Regions Visited 29 Branch Regions 17 Pre-discovered Areas 14 | . 1 . 1 . 1 . 1 2 1 . 1 . . . . 2 . . 1 . 3 . . . . . . . . Known Exits Taken 17 | . . . 1 . . . 1 1 . . . . 1 1 1 1 1 1 1 1 1 1 1 1 . 1 1 . . Unknown Exits Taken 11 | 1 1 1 . 1 1 1 . . 1 1 1 1 . . . . . . . . . . . . 1 . . . . Scrap Searched 11 | . . 1 . 2 . 1 . . 2 1 . . . 1 1 . . . . . . 2 . . . . . . . Spaces Dug 192 | . . . 7 . . . . . 5 . . . 63 . . . . . . 2 . . 5 1 2 42 6 32 27 Terrain Destroyed 385 | . . . 20 26 . . . . 7 . . 18 112 . . . . . . 2 . . 5 1 10 46 6 81 51 Melee 8 | . . . . . . . . . . . . . . . . . . . . 2 . . 5 1 . . . . . Projectile 176 | . . . . . . . . . . . . . . . . . . . . . . . . . 10 46 6 81 33 AOE 201 | . . . 20 26 . . . . 7 . . 18 112 . . . . . . . . . . . . . . . 18 Terrain Rammed . | . . . . . . . . . . . . . . . . . . . . . . . . . . . . . . Walls Destroyed . | . . . . . . . . . . . . . . . . . . . . . . . . . . . . . . Machines Disabled . | . . . . . . . . . . . . . . . . . . . . . . . . . . . . . . Actions | -11 -10 -10 -9 -9 -9 -8 -8 -7 -7 -7 -7 -6 -6 -6 -6 -5 -5 -4 -4 -4 -4 -3 -3 -3 -3 -2 -1 -1 -1 --------- Run | Jun Mat Min Mat Min Exi Min Mat Fac Low Low Dat Pro Fac Low Low Fac Ext Fac Upp Upp Zhi Pro Res Qua Sec Res Acc Gar Acc Total 11630 | 28 93 330 404 476 170 188 205 470 480 175 92 411 748 290 58 367 994 98 178 283 232 242 705 964 835 1153 237 395 329 Wait 372 | . . . . . . . . . 21 . . 31 . 40 . . 75 . . . 55 . . 29 . 46 13 44 18 Move 10603 | 27 87 325 384 462 166 186 180 458 442 173 89 362 684 239 58 360 716 96 178 278 157 240 664 903 794 1075 217 303 300 Hop 95 | . 3 2 3 5 . . 9 4 . 1 . 2 17 2 . 5 14 . . . . . 9 15 4 . . . . Pick Up 42 | 1 1 2 2 1 . . 2 2 2 1 . 2 3 1 . . 8 . . . 2 . 2 3 3 2 . 2 . Fast Attach 75 | . 2 . 5 . . . 5 4 3 . . . 10 6 . 1 8 2 . . 6 1 5 4 8 4 1 . . Attach 37 | . . . 2 3 . . 3 2 . . 1 1 4 . . 1 5 . . . 1 . 3 3 6 . 2 . . Detach 14 | . . . 1 1 . . 3 . 1 . . . 2 . . . 3 . . . . . . . 1 1 1 . . Swap 10 | . . 1 1 . . . . . 3 . . 1 . . . . 2 . . . 1 . 1 . . . . . . Drop 39 | . . . 3 . . . 2 . . . 1 5 6 2 . . 9 . . . 1 1 3 2 2 . . 2 . Fire 225 | . . . 3 2 . . . . 2 . . 3 4 . . . 132 . . . . . . . 7 20 3 39 10 Melee 42 | . . . . 2 4 . . . 6 . 1 4 . . . . 1 . . 5 9 . 7 3 . . . . . Ram 6 | . . . . . . 2 1 . . . . . 2 . . . . . . . . . 1 . . . . . . Kick 12 | . . . . . . . . . . . . . . . . . . . . . . . . . 1 5 . 5 1 Crush . | . . . . . . . . . . . . . . . . . . . . . . . . . . . . . . Escape Stasis 58 | . . . . . . . . . . . . . 16 . . . 21 . . . . . 10 2 9 . . . . Rewire . | . . . . . . . . . . . . . . . . . . . . . . . . . . . . . . Trap . | . . . . . . . . . . . . . . . . . . . . . . . . . . . . . . Miscellaneous . | . . . . . . . . . . . . . . . . . . . . . . . . . . . . . . Route ------- -11/Junkyard -10/Materials -10/Mines (discovered 2 exits: *Mat x2) -9/Materials (discovered 3 exits: *Mat / *Min / *Sto) -9/Mines (discovered 3 exits: *Mat x2 / *Exi) -9/Exiles (discovered 2 exits: [*Min x2]) -8/Mines -8/Materials (discovered 2 exits: *Fac x2) -7/Factory (discovered 3 exits: *Fac / *Low x2) -7/Lower Caves -7/Lower Caves -7/Data Miner -6/Proximity Caves -6/Factory -6/Lower Caves -6/Lower Caves -5/Factory -5/Extension (discovered 2 exits: *Fac / *Cet) -4/Factory -4/Upper Caves -4/Upper Caves -4/Zhirov -3/Proximity Caves -3/Research (discovered 3 exits: *Arm / *Qua x2) -3/Quarantine -3/Section 7 -2/Research (discovered 3 exits: *Acc x3) -1/Access -1/Garrison (discovered 2 exits: *Acc x2) -1/Access To Fleet Rendezvous History --------- Turn | Location | Event 3 | -11/Junkyard | Discovered new exit (range 15) 16 | -11/Junkyard | Entered Materials 58 | -10/Materials | Discovered new exit (range 6) 60 | -10/Materials | Entered Mines 96 | -10/Mines | Learned Materials emergency access door positions 104 | -10/Mines | Met a Derelict testing a Signal Generator 106 | -10/Mines | Found Signal Generator 169 | -10/Mines | Discovered new exit (range 5) 169 | -10/Mines | Discovered new exit (range 7) 186 | -10/Mines | Entered Materials 186 | -9/Materials | Evolved 2 slots: Propulsion x1, Utility x1 186 | -9/Materials | Discovered new exit (range 8) 249 | -9/Materials | Identified exit to Mines 249 | -9/Materials | Identified exit to Storage 306 | -9/Materials | Build established: Mutant 308 | -9/Materials | Discovered new exit (range 11) 344 | -9/Materials | Entered Mines 352 | -9/Mines | Learned Materials garrison access intel 357 | -9/Mines | Assisted by bots powering up and referring to "LRC-V3" 382 | -9/Mines | Deemed a non-threat by the Exiles lab entrance 382 | -9/Mines | Discovered new exit (range 5) 403 | -9/Mines | Discovered new exit (range 14) 428 | -9/Mines | Learned location of 1 exit from Materials 438 | -9/Mines | YI-UF0 nonchalantly dropped a Grenade Launcher on the ground 447 | -9/Mines | Discovered new exit (range 13) 474 | -9/Mines | Received a Mining Laser from a helpful Derelict 524 | -9/Mines | Entered Exiles 529 | -9/Exiles | Discovered new exit (range 17) 534 | -9/Exiles | Met 8R-AWN 541 | -9/Exiles | Met EX-HEX 556 | -9/Exiles | Met EX-BIN 567 | -9/Exiles | Met EX-DEC 570 | -9/Exiles | Learned location of Zion (-6) 587 | -9/Exiles | Discovered new exit (range 15) 592 | -9/Exiles | Entered Mines 642 | -8/Mines | Core integrity fell below 50% 664 | -8/Mines | Discovered new exit (range 10) 669 | -8/Mines | Entered Materials 669 | -8/Materials | Evolved 2 slots: Propulsion x1, Utility x1 670 | -8/Materials | Identified exit to Factory 671 | -8/Materials | Loaded intel: 1 garrison access location 683 | -8/Materials | Lost 3 parts (2n1w) 728 | -8/Materials | Core integrity fell below 50% 774 | -8/Materials | Discovered exit to Factory (range 5) 775 | -8/Materials | Core integrity fell below 20% 776 | -8/Materials | Entered Factory 776 | -7/Factory | Evolved 2 slots: Propulsion x1, Utility x1 815 | -7/Factory | Identified exit to Lower Caves 948 | -7/Factory | Discovered new exit (range 11) 960 | -7/Factory | Entered Lower Caves 1046 | -7/Lower Caves | Learned Factory stockpile data 1058 | -7/Lower Caves | Learned location of Extension (-5) 1067 | -7/Lower Caves | Spotted B-75 Beast 1094 | -7/Lower Caves | Attracted the attention of an 0b10 checkpoint 1162 | -7/Lower Caves | Discovered new exit (range 11) 1165 | -7/Lower Caves | Entered another Lower Caves area 1219 | -7/Lower Caves | Discovered new exit (range 12) 1223 | -7/Lower Caves | Entered Data Miner 1223 | -7/Data Miner | Discovered new exit (range 7) 1230 | -7/Data Miner | Met Data Miner 1236 | -7/Data Miner | Learned location of Section 7 (-3) 1236 | -7/Data Miner | Acquired the access code to Warlord's prototype stash 1241 | -7/Data Miner | Received God Mode back door access code from Data Miner 1254 | -7/Data Miner | Entered Proximity Caves 1262 | -6/Proximity Caves | Escorted by Enhanced Grunt 1394 | -6/Proximity Caves | Build established: Sprinter 1404 | -6/Proximity Caves | Spotted B-75 Beast 1417 | -6/Proximity Caves | Discovered new exit (range 16) 1420 | -6/Proximity Caves | Attracted the attention of an 0b10 checkpoint 1424 | -6/Proximity Caves | Entered Factory 1424 | -6/Factory | Evolved 2 slots: Power x1, Propulsion x1 1438 | -6/Factory | Lost 3 parts (3n) 1546 | -6/Factory | Found Prototype Launcher 1546 | -6/Factory | Identified Scatter Rocket Array 1548 | -6/Factory | Found Scatter Rocket Array 1644 | -6/Factory | Incoming investigation squad redirected 1668 | -6/Factory | Incoming investigation squad redirected 1684 | -6/Factory | Incoming investigation squad redirected 1726 | -6/Factory | Discovered new exit (range 14) 1729 | -6/Factory | Identified exit to Lower Caves 1733 | -6/Factory | Entered Lower Caves 1767 | -6/Lower Caves | Discovered new exit (range 10) 1768 | -6/Lower Caves | Encountered a Warlord checkpoint 1773 | -6/Lower Caves | Identified exit to Lower Caves 1861 | -6/Lower Caves | Entered another Lower Caves area 1873 | -6/Lower Caves | Discovered new exit (range 9) 1875 | -6/Lower Caves | Identified exit to Factory 1875 | -6/Lower Caves | Entered Factory 1875 | -5/Factory | Evolved 2 slots: Utility x2 1906 | -5/Factory | Incoming investigation squad redirected 1959 | -5/Factory | Discovered new exit (range 6) 1963 | -5/Factory | Identified exit to Extension 1963 | -5/Factory | Entered Extension 2002 | -5/Extension | Rescued a captive Derelict 2027 | -5/Extension | Spotted B-75 Beast 2028 | -5/Extension | Spotted B-75 Beast 2044 | -5/Extension | Rescued a captive Derelict 2045 | -5/Extension | Rescued a captive Derelict 2047 | -5/Extension | Rescued a captive Derelict 2061 | -5/Extension | Lost 3 parts (1p2n) 2076 | -5/Extension | Rescued a captive Derelict 2077 | -5/Extension | Rescued a captive Derelict 2091 | -5/Extension | Rescued A7 2099 | -5/Extension | Lost 3 parts (2n1u) 2205 | -5/Extension | Discovered new exit (range 10) 2206 | -5/Extension | Discovered new exit (range 6) 2214 | -5/Extension | Identified exit to Cetus 2282 | -5/Extension | Found Prototype Protection 2582 | -5/Extension | Build established: Hacker-Mutant 2656 | -5/Extension | Destroyed A7 2662 | -5/Extension | Extracted ID and sensor layout for unrecognized location from A7's data core 2689 | -5/Extension | Identified exit to Factory 2689 | -5/Extension | Entered Factory 2689 | -4/Factory | Evolved 2 slots: Propulsion x1, Utility x1 2719 | -4/Factory | Discovered new exit (range 5) 2720 | -4/Factory | Identified exit to Upper Caves 2723 | -4/Factory | Entered Upper Caves 2777 | -4/Upper Caves | Discovered new exit (range 10) 2780 | -4/Upper Caves | Identified exit to Upper Caves 2780 | -4/Upper Caves | Entered another Upper Caves area 2788 | -4/Upper Caves | Attracted the attention of an 0b10 checkpoint 2877 | -4/Upper Caves | Encountered a Warlord checkpoint 2878 | -4/Upper Caves | Discovered new exit (range 12) 2883 | -4/Upper Caves | Identified exit to Zhirov 2883 | -4/Upper Caves | Entered Zhirov 2883 | -4/Zhirov | Discovered new exit (range 3) 2890 | -4/Zhirov | Met Zhirov 2895 | -4/Zhirov | Learned location of Testing (-2) 2895 | -4/Zhirov | Learned location of Command (-1) 2897 | -4/Zhirov | Zhirov requested help retrieving the SGEMP Prototype 2902 | -4/Zhirov | Found Alien Artifact 2902 | -4/Zhirov | Identified Integrated Dissipator 2902 | -4/Zhirov | Installed Integrated Dissipator, increased core heat dissipation (+20) 2911 | -4/Zhirov | Lost 3 parts (2n1u) 2921 | -4/Zhirov | Identified Med. Regenerative Plating 2961 | -4/Zhirov | Build established: Hacker-Sprinter 3010 | -4/Zhirov | Found Alien Artifact 3020 | -4/Zhirov | Identified exit to Proximity Caves 3020 | -4/Zhirov | Entered Proximity Caves 3022 | -3/Proximity Caves | Spotter reported a threat 3023 | -3/Proximity Caves | Spotter reported a threat 3028 | -3/Proximity Caves | Attracted the attention of an 0b10 checkpoint 3074 | -3/Proximity Caves | Discovered new exit (range 15) 3074 | -3/Proximity Caves | Spotted B-86 Titan 3077 | -3/Proximity Caves | Identified exit to Research 3078 | -3/Proximity Caves | Entered Research 3078 | -3/Research | Evolved 2 slots: Utility x2 3165 | -3/Research | Discovered new exit (range 4) 3166 | -3/Research | Identified exit to Armory 3223 | -3/Research | Spotted B-86 Titan 3241 | -3/Research | Identified exit to Quarantine 3275 | -3/Research | Entered Quarantine 3310 | -3/Quarantine | Met incapacitated Sigix Warrior 3310 | -3/Quarantine | Lockdown squad dispatched 3328 | -3/Quarantine | Found Alien Artifact 3343 | -3/Quarantine | Lost 3 parts (1p2n) 3421 | -3/Quarantine | Found Alien Artifact 3447 | -3/Quarantine | Found Alien Artifact 3447 | -3/Quarantine | Identified Core Reset Matrix 3447 | -3/Quarantine | Identified Transdimensional Reconstructor 3447 | -3/Quarantine | Identified Subatomic Replicator 3447 | -3/Quarantine | Identified Dimensional Node Initializer 3447 | -3/Quarantine | Used Core Reset Matrix 3451 | -3/Quarantine | Sensed 7 artifacts in vicinity 3485 | -3/Quarantine | Found Prototype Processor 3485 | -3/Quarantine | Identified Spectral Analyzer 3487 | -3/Quarantine | Found Spectral Analyzer 3518 | -3/Quarantine | Spotted Fortress 3536 | -3/Quarantine | Discovered new exit (range 6) 3537 | -3/Quarantine | Identified exit to Section 7 3544 | -3/Quarantine | Incoming investigation squad redirected 3550 | -3/Quarantine | Search patrols dispatched 3567 | -3/Quarantine | Entered Section 7 3568 | -3/Section 7 | Sensed 22 artifacts in vicinity 3617 | -3/Section 7 | Spotted Alpha 7 3617 | -3/Section 7 | Spotted Alpha 7 3621 | -3/Section 7 | Spotted B-99 Colossus 3655 | -3/Section 7 | Found Terrabomb 3664 | -3/Section 7 | Lost 12 parts (5n6u1w) 3680 | -3/Section 7 | Spotted Executioner 3680 | -3/Section 7 | Spotted Executioner 3692 | -3/Section 7 | Used Terrabomb 3694 | -3/Section 7 | Released all parts (2) 3694 | -3/Section 7 | Integrated with Sigix Exoskeleton 3709 | -3/Section 7 | Spotted Striker 3709 | -3/Section 7 | Spotted Striker 3724 | -3/Section 7 | Found Terrabomb 3728 | -3/Section 7 | Spotted Executioner 3729 | -3/Section 7 | Spotted Executioner 3748 | -3/Section 7 | Warped through subspace 3749 | -3/Section 7 | Core integrity fell below 50% 3768 | -3/Section 7 | Used Terrabomb 3771 | -3/Section 7 | Found LRC Storage 3771 | -3/Section 7 | Installed LRC Storage, increased inventory capacity (+2) 3774 | -3/Section 7 | Found LRC Matter Compressor 3774 | -3/Section 7 | Installed LRC Matter Compressor, increased matter storage capacity (+125) 3776 | -3/Section 7 | Found LRC Insulator 3776 | -3/Section 7 | Installed LRC Insulator, gained EM resistance (25) 3789 | -3/Section 7 | Found Integrated Dissipator 3789 | -3/Section 7 | Installed Integrated Dissipator, increased core heat dissipation (+20) 3845 | -3/Section 7 | Spotted Investigator 3848 | -3/Section 7 | Scanned by Researcher 3849 | -3/Section 7 | Intercept squad dispatched 3853 | -3/Section 7 | Destroyed Investigator 3857 | -3/Section 7 | Sigix Exoskeleton integrity reduced to 80% 3859 | -3/Section 7 | Spotted Tracker 3860 | -3/Section 7 | Spotted Tracker 3862 | -3/Section 7 | Spotted Combat Programmer 3863 | -3/Section 7 | Spotted Combat Programmer 3866 | -3/Section 7 | Discovered new exit (range 17) 3873 | -3/Section 7 | Initialized slip node 3875 | -3/Section 7 | Sigix Exoskeleton integrity reduced to 60% 3875 | -3/Section 7 | Core integrity fell below 20% 3875 | -3/Section 7 | Entered Research 3875 | -2/Research | Evolved 2 slots: Utility x2 3880 | -2/Research | Emitted hypermatrix ping 3885 | -2/Research | Assembled emerged from beneath the floor 3902 | -2/Research | Incoming investigation squad redirected 3964 | -2/Research | Incoming investigation squad redirected 3979 | -2/Research | Build established: Alien-Sigix 3992 | -2/Research | Spotted B-90 Cyclops 4010 | -2/Research | Assembled emerged from beneath the floor 4010 | -2/Research | Discovered new exit (range 18) 4050 | -2/Research | Identified exit to Access 4081 | -2/Research | Assembled emerged from beneath the floor 4112 | -2/Research | Discovered exit to Access (range 16) 4114 | -2/Research | Assembled emerged from beneath the floor 4140 | -2/Research | Assembled emerged from beneath the floor 4140 | -2/Research | Intercept squad dispatched 4159 | -2/Research | Spotted Tracker 4159 | -2/Research | Spotted Tracker 4164 | -2/Research | Spotted B-90 Cyclops 4182 | -2/Research | Assembled emerged from beneath the floor 4206 | -2/Research | Assembled emerged from beneath the floor 4240 | -2/Research | Intercept squad dispatched 4254 | -2/Research | Spotted Tracker 4255 | -2/Research | Spotted Tracker 4255 | -2/Research | Spotted Tracker 4276 | -2/Research | Spotted Combat Programmer 4276 | -2/Research | Spotted Combat Programmer 4284 | -2/Research | Spotted Striker 4285 | -2/Research | Assembled emerged from beneath the floor 4293 | -2/Research | Discovered exit to Access (range 18) 4297 | -2/Research | Assembled emerged from beneath the floor 4300 | -2/Research | Garrison activated, responded to threat 4305 | -2/Research | Spotted Combat Programmer 4305 | -2/Research | Entered Access 4305 | -1/Access | Evolved 2 slots: Power x1, Utility x1 4310 | -1/Access | Emitted hypermatrix ping 4315 | -1/Access | Assembled emerged from beneath the floor 4391 | -1/Access | Identified exit to Garrison 4393 | -1/Access | Entered Garrison 4507 | -1/Garrison | Discovered new exit (range 18) 4513 | -1/Garrison | Identified exit to Access 4513 | -1/Garrison | Attempted to access garrison exit controls, blocked by remote lockdown 4602 | -1/Garrison | Sigix Exoskeleton integrity reduced to 40% 4624 | -1/Garrison | Attempted to install RIF, but system incompatible 4629 | -1/Garrison | Destroyed 11 combat bots 4632 | -1/Garrison | Discovered exit to Access (range 17) 4636 | -1/Garrison | Entered Access 4641 | -1/Access | Emitted hypermatrix ping 4646 | -1/Access | Assembled emerged from beneath the floor 4725 | -1/Access | Energy Cycler disabled 4767 | -1/Access | Discovered new exit (range 17) 4771 | -1/Access | Identified exit to Surface 4772 | *** | Heading to fleet! Last Messages --------------- 04713_ K-01 Serf system corrupted by crushing effect. 04713_ K-01 Serf knocked back. 04714_ K-01 Serf system terminally corrupted. 04719_ Quantum Shear penetrates Wall. 04722_ /PML&